bitfinex-derivatives/quotes_ETHF0:USTF0_20230101
["timestamp","ask_amount","ask_price","bid_price","bid_amount"]
[1672539745911,3.75636347,1195.4,1195.3,3.5]
[1672539751996,8.12997836,1195.4,1195.3,3.5]
[1672539753256,3.75636347,1195.4,1195.3,3.5]
[1672539762626,11.62997836,1195.5,1195.3,3.5]
[1672539763043,3.75636347,1195.4,1195.3,3.5]
[1672539764520,11.62997836,1195.5,1195.3,3.5]
[1672539765151,3.75636347,1195.4,1195.3,3.5]
[1672539765885,11.62997836,1195.5,1195.3,3.5]
[1672539768086,3.75636347,1195.4,1195.3,3.5]
[1672539772298,11.62997836,1195.5,1195.3,3.5]
[1672539773456,7.25636347,1195.5,1195.3,3.5]
[1672539773981,11.62997836,1195.5,1195.3,3.5]
[1672539774506,11.62997836,1195.5,1195.3,4.75355534]
[1672539774713,11.62997836,1195.5,1195.3,3.5]
[1672539775766,3.75636347,1195.4,1195.3,3.5]
[1672539776607,11.62997836,1195.5,1195.3,4.75355534]
[1672539776920,11.62997836,1195.5,1195.3,3.5]
[1672539778079,3.75636347,1195.4,1195.3,4.75355534]
[1672539778602,3.75636347,1195.4,1195.3,3.5]
[1672539779228,3.75636347,1195.4,1195.3,4.75355534]
[1672539779646,11.62997836,1195.5,1195.3,4.75355534]
[1672539779966,3.75636347,1195.4,1195.3,4.75355534]
[1672539781025,7.25636347,1195.5,1195.3,6.63370113]
[1672539782070,11.62997836,1195.5,1195.3,6.63370113]
[1672539791224,7.25636347,1195.5,1195.3,6.63370113]
[1672539791741,11.62997836,1195.5,1195.3,6.63370113]
[1672539792800,7.25636347,1195.5,1195.4,1.25355534]
[1672539793537,7.25636347,1195.5,1195.4,12.157487]
[1672539793850,3.75636347,1195.5,1195.4,12.157487]
[1672539794690,7.75636347,1195.5,1195.4,12.157487]
[1672539796051,7.75636347,1195.5,1195.4,10.90393166]
[1672539796265,7.75636347,1195.5,1195.4,12.157487]
[1672539796785,3.75636347,1195.5,1195.4,12.157487]
[1672539796993,7.75636347,1195.5,1195.4,12.157487]
[1672539797212,7.75636347,1195.5,1195.4,10.90393166]
[1672539799628,7.75636347,1195.5,1195.4,12.157487]
[1672539802148,3.75636347,1195.5,1195.4,12.157487]
[1672539802468,7.75636347,1195.5,1195.4,12.157487]
[1672539805093,7.75636347,1195.5,1195.4,10.90393166]
[1672539805406,7.75636347,1195.5,1195.4,12.157487]
[1672539805608,7.75636347,1195.5,1195.4,10.90393166]
[1672539805816,7.75636347,1195.5,1195.4,12.157487]
[1672539806031,7.75636347,1195.5,1195.4,10.90393166]
[1672539806660,7.75636347,1195.5,1195.4,10.89670412]
[1672539813400,7.75636347,1195.5,1195.4,12.15025946]
[1672539813821,7.75636347,1195.5,1195.4,10.89670412]
[1672539814448,7.75636347,1195.5,1195.4,12.15025946]
[1672539815072,7.75636347,1195.5,1195.4,10.89670412]
[1672539815500,7.75636347,1195.5,1195.4,12.15025946]
[1672539817391,3.75636347,1195.5,1195.4,12.15025946]
[1672539817596,7.75636347,1195.5,1195.4,12.15025946]
[1672539818234,3.75636347,1195.5,1195.4,12.15025946]
[1672539818659,8.12997836,1195.6,1195.4,14.03040525]
[1672539818857,8.12997836,1195.6,1195.5,4.0]
[1672539819696,4.37361489,1195.6,1195.5,4.0]
[1672539819908,8.37361489,1195.6,1195.5,4.0]
[1672539821593,13.38382066,1195.6,1195.5,4.0]
[1672539823491,13.40227583,1195.6,1195.5,4.0]
[1672539833257,8.39207006,1195.6,1195.5,4.0]
[1672539843771,13.40227583,1195.6,1195.5,4.0]
[1672539844190,8.39207006,1195.6,1195.5,4.0]
[1672539846818,8.39207006,1195.6,1195.4,10.89670412]
[1672539847137,7.89207006,1195.5,1195.3,4.75355534]
[1672539847448,3.76501402,1195.4,1195.3,5.25355534]
[1672539852087,11.65708408,1195.5,1195.3,5.25355534]
[1672539853554,7.26501402,1195.5,1195.3,7.13370113]
[1672539855227,3.76501402,1195.5,1195.3,7.13370113]
[1672539855441,3.76501402,1195.5,1195.4,1.25355534]
[1672539855969,3.76501402,1195.5,1195.4,11.98696337]
[1672539857234,3.76501402,1195.5,1195.4,10.73340803]
[1672539859963,3.76501402,1195.5,1195.4,11.98696337]
[1672539862915,3.76501402,1195.5,1195.4,10.73340803]
[1672539865011,3.76501402,1195.5,1195.4,11.98696337]
[1672539865327,3.76501402,1195.5,1195.4,10.73340803]
[1672539878147,8.15708408,1195.5,1195.4,10.73340803]
[1672539878348,8.15708408,1195.5,1195.3,7.13370113]
[1672539878560,3.5,1195.4,1195.3,7.13370113]
[1672539879194,3.5,1195.4,1195.3,15.49970113]
[1672539880984,3.5,1195.4,1195.3,15.49637232]
[1672539883402,8.15708408,1195.5,1195.3,15.49637232]
[1672539883612,3.76501402,1195.5,1195.3,15.49637232]
[1672539883924,3.5,1195.4,1195.3,7.13037232]
[1672539886126,7.26501402,1195.4,1195.3,7.13037232]
[1672539886338,7.26501402,1195.4,1195.3,5.25022653]
[1672539887186,7.26501402,1195.4,1195.3,7.13037232]
[1672539889392,3.5,1195.4,1195.3,7.13037232]
[1672539891287,7.26501402,1195.4,1195.3,7.13037232]
[1672539891911,7.26501402,1195.4,1195.3,5.25022653]
[1672539892119,7.26501402,1195.4,1195.3,7.13037232]
[1672539894967,7.26501402,1195.4,1195.3,5.25022653]
[1672539896005,7.26501402,1195.4,1195.3,7.13037232]
[1672539898738,7.26501402,1195.4,1195.3,5.25022653]
[1672539900742,7.26501402,1195.4,1195.3,7.13037232]
[1672539901160,7.26501402,1195.4,1195.3,5.25022653]
[1672539901473,7.26501402,1195.4,1195.3,7.13037232]
[1672539901678,3.5,1195.4,1195.3,7.13037232]
[1672539902098,7.26501402,1195.4,1195.3,7.13037232]
[1672539903473,7.26501402,1195.4,1195.3,5.25022653]
[1672539910192,11.65708408,1195.4,1195.3,3.99667119]
[1672539911564,7.26501402,1195.4,1195.3,3.99667119]
[1672539911985,11.65708408,1195.4,1195.3,3.99667119]
[1672539912415,7.26501402,1195.4,1195.3,3.99667119]
[1672539913456,7.26501402,1195.4,1195.3,5.25022653]
[1672539914824,7.26501402,1195.4,1195.3,3.99667119]
[1672539917551,11.65708408,1195.4,1195.3,3.99667119]
[1672539918171,7.26501402,1195.4,1195.3,3.99667119]
[1672539921965,7.26268892,1195.4,1195.3,3.99667119]
[1672539924075,11.65475898,1195.4,1195.3,3.99667119]
[1672539924285,7.26268892,1195.4,1195.3,3.99667119]
[1672539925445,11.65475898,1195.4,1195.3,3.99667119]
[1672539926179,7.26268892,1195.4,1195.3,3.99667119]
[1672539927441,11.65475898,1195.4,1195.3,3.99667119]
[1672539927748,7.26268892,1195.4,1195.3,3.99667119]
[1672539928491,11.65475898,1195.4,1195.3,3.99667119]
[1672539931019,7.88974496,1195.4,1195.3,3.99667119]
[1672539931214,11.65426341,1195.4,1195.3,3.99667119]
[1672539932589,7.26219335,1195.4,1195.3,3.99667119]
[1672539933112,7.26219335,1195.4,1195.3,5.25022653]
[1672539934062,7.26219335,1195.4,1195.3,3.99667119]
[1672539934273,7.26219335,1195.4,1195.3,5.25022653]
[1672539934693,7.26219335,1195.4,1195.3,3.99667119]
[1672539934914,7.26219335,1195.4,1195.3,5.25022653]
[1672539935112,7.26219335,1195.4,1195.3,3.99667119]
[1672539935324,11.65426341,1195.4,1195.3,3.99667119]
[1672539935644,11.65426341,1195.4,1195.3,5.25022653]
[1672539935859,11.65426341,1195.4,1195.3,3.99667119]
[1672539936379,11.65426341,1195.4,1195.3,5.25022653]
[1672539936690,11.65426341,1195.4,1195.3,3.99667119]
[1672539937115,11.65426341,1195.4,1195.3,5.25022653]
[1672539937327,11.65426341,1195.4,1195.3,3.99667119]
[1672539937537,11.65501204,1195.4,1195.3,3.99667119]
[1672539938271,7.26294198,1195.4,1195.3,5.25022653]
[1672539939106,11.65501204,1195.4,1195.3,5.25022653]
[1672539939745,7.26294198,1195.4,1195.3,5.25022653]
[1672539943527,7.26294198,1195.4,1195.3,7.13037232]
[1672539943951,7.26294198,1195.4,1195.3,5.25022653]
[1672539945001,7.26294198,1195.4,1195.3,7.13037232]
[1672539945740,7.26294198,1195.4,1195.3,5.25022653]
[1672539948155,7.26294198,1195.4,1195.3,7.13037232]
[1672539948680,7.26294198,1195.4,1195.3,5.25022653]
[1672539948992,11.65501204,1195.4,1195.3,5.25022653]
[1672539949204,7.26294198,1195.4,1195.3,5.25022653]
[1672539949624,11.65501204,1195.4,1195.3,5.25022653]
[1672539950470,11.65501204,1195.4,1195.3,3.99667119]
[1672539950681,11.65501204,1195.4,1195.3,5.25022653]
[1672539950886,7.26294198,1195.4,1195.3,5.25022653]
[1672539952989,11.65501204,1195.4,1195.3,5.25022653]
[1672539953306,7.26294198,1195.4,1195.3,5.25022653]
[1672539955729,11.65501204,1195.4,1195.3,5.25022653]
[1672539958460,7.26294198,1195.4,1195.3,5.25022653]
[1672539958882,11.65501204,1195.4,1195.3,5.25022653]
[1672539959303,7.26294198,1195.4,1195.3,5.25022653]
[1672539959834,11.65501204,1195.4,1195.3,5.25022653]
[1672539960351,7.26294198,1195.4,1195.3,5.25022653]
[1672539969187,7.26294198,1195.4,1195.3,7.13037232]
[1672539969399,7.26294198,1195.4,1195.3,5.25022653]
[1672539970444,3.76526708,1195.4,1195.3,7.13037232]
[1672539970656,3.76526708,1195.6,1195.3,8.61761376]
[1672539970869,3.76526708,1195.6,1195.5,1.25393403]
[1672539971081,7.76526708,1195.6,1195.5,4.75393403]
[1672539971599,7.76526708,1195.6,1195.5,5.25393403]
[1672539972126,4.0,1195.6,1195.5,5.25393403]
[1672539972334,7.76526708,1195.6,1195.5,5.25393403]
[1672539972545,4.0,1195.6,1195.5,5.25393403]
[1672539973184,4.0,1195.6,1195.5,4.0]
[1672539982849,3.76526708,1195.7,1195.5,4.0]
[1672539983060,4.0,1195.6,1195.5,4.0]
[1672539983693,3.76526708,1195.7,1195.5,4.0]
[1672539983904,8.15733714,1195.8,1195.5,4.0]
[1672539984107,3.76526708,1195.8,1195.5,5.25393403]
[1672539984318,3.76526708,1195.8,1195.6,8.366]
[1672539984529,4.0,1195.8,1195.7,3.5]
[1672539984842,12.15733714,1195.9,1195.7,3.5]
[1672539985061,7.76526708,1195.9,1195.7,3.5]
[1672539985693,3.5,1195.8,1195.7,3.5]
[1672539997675,7.26526708,1195.8,1195.7,3.5]
[1672540001267,7.26526708,1195.8,1195.7,3.49404231]
[1672540003161,7.25753575,1195.8,1195.7,3.49404231]
[1672540006523,3.76526708,1195.9,1195.7,3.49404231]
[1672540006733,8.15733714,1196.0,1195.7,11.86004231]
[1672540007150,3.76526708,1196.0,1195.7,13.11397634]
[1672540007468,7.76526708,1196.0,1195.7,13.11397634]
[1672540008932,3.5,1195.9,1195.7,13.11397634]
[1672540012303,12.15733714,1196.0,1195.7,13.11397634]
[1672540013039,3.5,1195.9,1195.7,13.11397634]
[1672540014409,3.5,1195.9,1195.7,11.86004231]
[1672540014615,12.15733714,1196.0,1195.7,11.86004231]
[1672540014929,3.0,1195.9,1195.7,13.11397634]
[1672540015454,12.15733714,1196.0,1195.7,13.11397634]
[1672540017452,7.76526708,1196.0,1195.7,13.11397634]
[1672540019135,7.76526708,1196.0,1195.7,14.99487739]
[1672540021872,7.76526708,1196.0,1195.7,13.11397634]
[1672540022087,3.5,1195.9,1195.7,13.11397634]
[1672540023660,7.26526708,1195.9,1195.7,3.49404231]
[1672540024080,11.65733714,1195.9,1195.6,1.70179316]
[1672540024910,3.76526708,1195.8,1195.6,1.70179316]
[1672540025125,7.89207006,1195.9,1195.6,1.70179316]
[1672540025126,11.65733714,1195.9,1195.6,1.70179316]
[1672540025330,11.65733714,1195.9,1195.7,3.5]
[1672540025542,7.26526708,1195.9,1195.7,3.5]
[1672540025760,11.65733714,1195.9,1195.7,3.5]
[1672540028285,7.26526708,1195.9,1195.7,3.5]
[1672540033324,7.26526708,1195.9,1195.7,4.75393403]
[1672540033641,7.26526708,1195.9,1195.7,3.5]
[1672540034270,11.65733714,1195.9,1195.7,3.5]
[1672540036272,7.26526708,1195.9,1195.7,3.5]
[1672540036596,11.65733714,1195.9,1195.7,3.5]
[1672540037747,7.26526708,1195.9,1195.7,4.75393403]
[1672540037961,7.26526708,1195.9,1195.7,3.5]
[1672540039226,11.65733714,1195.9,1195.7,3.5]
[1672540039854,7.26526708,1195.9,1195.7,3.5]
[1672540040273,11.65733714,1195.9,1195.7,3.5]
[1672540040484,7.26526708,1195.9,1195.7,3.5]
[1672540041013,11.65733714,1195.9,1195.7,3.5]
[1672540043215,3.76526708,1195.8,1195.7,3.5]
[1672540043531,11.65733714,1195.9,1195.7,4.75393403]
[1672540045214,3.76526708,1195.8,1195.7,4.75393403]
[1672540045948,11.65733714,1195.9,1195.7,4.75393403]
[1672540047333,3.76526708,1195.8,1195.7,4.75393403]
[1672540050160,11.65733714,1195.9,1195.7,4.75393403]
[1672540051218,3.76526708,1195.8,1195.7,4.75393403]
[1672540052164,3.76526708,1195.8,1195.7,13.11993403]
[1672540052478,7.89207006,1195.9,1195.7,15.00083508]
[1672540052479,7.26526708,1195.9,1195.7,15.00083508]
[1672540056361,7.26526708,1195.9,1195.7,4.75393403]
[1672540056577,7.26526708,1195.9,1195.7,3.5]
[1672540056775,3.76526708,1195.8,1195.7,3.5]
[1672540057305,3.76526708,1195.8,1195.7,4.75393403]
[1672540063192,3.76526708,1195.8,1195.7,6.63483508]
[1672540064566,3.76526708,1195.8,1195.7,4.75393403]
[1672540065623,3.76526708,1195.8,1195.7,6.63483508]
[1672540067823,11.65733714,1195.9,1195.7,5.38090105]
[1672540068035,7.26526708,1195.9,1195.8,1.25335146]
[1672540068661,11.65733714,1195.9,1195.7,7.13425251]
[1672540068867,3.76526708,1195.8,1195.7,7.13425251]
[1672540069925,3.76526708,1195.8,1195.7,5.25335146]
[1672540070136,3.76526708,1195.8,1195.7,7.13425251]
[1672540071087,3.76526708,1195.8,1195.7,5.25335146]
[1672540072974,3.76526708,1195.8,1195.7,7.13425251]
[1672540078334,3.76526708,1195.8,1195.7,7.13028521]
[1672540079170,3.76526708,1195.8,1195.7,5.24938416]
[1672540079694,3.76526708,1195.8,1195.7,7.13028521]
[1672540082116,3.76526708,1195.8,1195.7,5.24938416]
[1672540082635,3.76526708,1195.8,1195.7,7.13028521]
[1672540091467,11.65733714,1195.9,1195.7,7.13028521]
[1672540091785,11.65733714,1195.9,1195.8,1.25335146]
[1672540092097,11.65733714,1195.9,1195.7,7.13028521]
[1672540092302,11.65733714,1195.9,1195.8,1.25335146]
[1672540092717,11.65733714,1195.9,1195.7,7.13028521]
[1672540092931,11.65733714,1195.9,1195.8,1.25335146]
[1672540093360,11.65733714,1195.9,1195.7,7.13028521]
[1672540093569,3.76526708,1195.8,1195.7,7.13028521]
[1672540102819,3.76526708,1195.8,1195.7,7.13045661]
[1672540104080,11.65733714,1195.9,1195.7,5.87693375]
[1672540104291,11.65733714,1195.9,1195.8,1.25335822]
[1672540105972,11.65733714,1195.9,1195.7,7.13029197]
[1672540106176,3.76433095,1195.8,1195.7,7.13029197]
[1672540107128,11.65640101,1195.9,1195.7,5.87693375]
[1672540107338,11.65640101,1195.9,1195.8,1.2534014]
[1672540108492,11.65640101,1195.9,1195.7,7.13033515]
[1672540108693,11.65640101,1195.9,1195.8,1.2534014]
[1672540108905,11.65640101,1195.9,1195.7,7.13033515]
[1672540109115,3.76433095,1195.8,1195.7,7.13033515]
[1672540122578,11.65640101,1195.9,1195.7,5.87693375]
[1672540122784,11.65640101,1195.9,1195.8,1.25331215]
[1672540124997,7.89207006,1195.9,1195.8,1.25331215]
[1672540125839,11.65659952,1195.9,1195.8,1.25331215]
[1672540126153,7.89207006,1195.9,1195.8,1.25331215]
[1672540127729,11.65663697,1195.9,1195.8,1.25331215]
[1672540128044,7.26456691,1195.9,1195.8,1.25331215]
[1672540128891,11.65663697,1195.9,1195.8,1.25331215]
[1672540132258,7.26456691,1195.9,1195.8,1.25331215]
[1672540132572,3.76456691,1195.9,1195.8,3.1342132]
[1672540133195,3.76456691,1196.0,1195.8,21.97393813]
[1672540133404,3.76456691,1196.1,1195.9,10.87386806]
[1672540133617,3.76456691,1196.1,1196.0,6.63111715]
[1672540133830,3.76456691,1196.1,1196.0,7.13111715]
[1672540134036,3.76456691,1196.1,1196.0,17.80086241]
[1672540134248,3.76456691,1196.2,1196.1,3.5]
[1672540134771,8.15663697,1196.2,1196.1,3.5]
[1672540134982,8.39207006,1196.2,1196.1,3.5]
[1672540135191,12.15079763,1196.2,1196.1,3.5]
[1672540135405,3.5,1196.1,1196.0,14.66974526]
[1672540135608,7.25876046,1196.1,1196.0,14.66974526]
[1672540136358,3.5,1196.1,1196.0,14.66974526]
[1672540137196,3.5,1196.1,1196.0,4.0]
[1672540137720,3.5,1196.1,1196.0,14.66126641]
[1672540143500,3.5,1196.1,1196.0,14.65341118]
[1672540146856,3.5,1196.1,1196.0,3.99214477]
[1672540147275,7.25876046,1196.1,1195.9,3.5]
[1672540147492,11.65083052,1196.1,1195.8,13.652]
[1672540147699,11.65083052,1196.1,1195.9,4.0]
[1672540148544,3.75876046,1196.0,1195.9,4.0]
[1672540148751,11.65083052,1196.1,1195.9,4.0]
[1672540149280,7.25876046,1196.1,1195.9,4.0]
[1672540156108,3.5,1196.1,1195.9,4.0]
[1672540156315,7.25876046,1196.1,1195.9,4.0]
[1672540162310,3.75876046,1196.1,1195.9,13.61844686]
[1672540162627,7.75876046,1196.2,1195.9,13.61844686]
[1672540163052,7.75876046,1196.2,1195.9,5.25244686]
[1672540163470,3.75876046,1196.1,1195.9,5.25244686]
[1672540163993,3.0,1196.0,1195.9,5.25244686]
[1672540164413,3.0,1196.0,1195.9,4.0]
[1672540164939,3.0,1196.0,1195.9,5.25244686]
[1672540165992,3.0,1196.0,1195.9,4.0]
[1672540171245,6.75876046,1196.0,1195.9,4.0]
[1672540172400,6.75876046,1196.0,1195.9,5.25244686]
[1672540172924,6.75876046,1196.0,1195.9,4.0]
[1672540173872,6.75876046,1196.0,1195.9,5.25244686]
[1672540177973,3.0,1196.0,1195.9,5.25244686]
[1672540179027,6.75876046,1196.0,1195.9,5.25244686]
[1672540179749,3.0,1196.0,1195.9,7.13111715]
[1672540179964,3.0,1196.0,1195.9,5.25244686]
[1672540180495,3.0,1196.0,1195.9,7.13111715]
[1672540181120,8.15083052,1196.1,1195.9,5.25244686]
[1672540181432,3.5,1196.0,1195.9,5.25244686]
[1672540182810,3.5,1196.0,1195.9,7.13111715]
[1672540184272,3.5,1196.0,1195.9,5.25244686]
[1672540184797,3.5,1196.0,1195.9,7.13111715]
[1672540185007,8.15083052,1196.1,1195.9,7.13111715]
[1672540185221,3.75876046,1196.2,1196.0,3.13111715]
[1672540185430,7.75876046,1196.2,1196.1,3.5]
[1672540190794,3.75876046,1196.2,1196.1,3.5]
[1672540191010,8.15083052,1196.3,1196.1,4.75244686]
[1672540191325,4.0,1196.2,1196.1,3.5]
[1672540191532,7.75876046,1196.2,1196.1,3.5]
[1672540202581,3.75876046,1196.2,1196.1,3.5]
[1672540202781,7.75876046,1196.2,1196.1,3.5]
[1672540203513,3.75876046,1196.2,1196.1,3.5]
[1672540203723,7.75876046,1196.2,1196.1,3.5]
[1672540203942,4.0,1196.2,1196.1,3.5]
[1672540204571,7.75876046,1196.2,1196.1,3.5]
[1672540207193,4.0,1196.2,1196.1,3.5]
[1672540213198,8.15083052,1196.3,1196.1,3.5]
[1672540213409,3.75876046,1196.3,1196.1,4.75244686]
[1672540213619,7.75876046,1196.3,1196.1,4.75244686]
[1672540216561,3.5,1196.2,1196.1,3.5]
[1672540218463,7.25876046,1196.2,1196.1,3.5]
[1672540220557,11.65083052,1196.2,1196.1,3.5]
[1672540220871,7.25876046,1196.2,1196.1,3.5]
[1672540221081,11.65083052,1196.2,1196.1,3.5]
[1672540222764,7.25876046,1196.2,1196.1,3.5]
[1672540222980,11.65083052,1196.2,1196.1,3.5]
[1672540223183,7.25876046,1196.2,1196.1,3.5]
[1672540225503,11.65083052,1196.2,1196.1,3.5]
[1672540225924,7.25876046,1196.2,1196.1,3.5]
[1672540226241,7.25876046,1196.2,1196.1,4.75244686]
[1672540227186,7.25876046,1196.2,1196.1,3.5]
[1672540232644,11.65083052,1196.2,1196.1,3.5]
[1672540233387,7.25876046,1196.2,1196.1,3.5]
[1672540234338,11.65083052,1196.2,1196.1,3.5]
[1672540234969,7.25876046,1196.2,1196.1,3.5]
[1672540235179,11.65083052,1196.2,1196.1,3.5]
[1672540238738,7.89207006,1196.2,1196.0,5.25244686]
[1672540238952,3.76204346,1196.1,1196.0,5.25244686]
[1672540239162,3.76204346,1196.1,1196.0,15.97965754]
[1672540239373,3.76204346,1196.1,1196.0,5.25244686]
[1672540240537,3.76204346,1196.1,1196.0,16.15780866]
[1672540240851,3.76204346,1196.1,1196.0,5.25244686]
[1672540241374,3.76204346,1196.1,1196.0,16.37040186]
[1672540241691,3.76204346,1196.1,1196.0,16.02368087]
[1672540241902,3.76204346,1196.1,1196.0,5.25244686]
[1672540242316,3.76204346,1196.1,1196.0,16.33673116]
[1672540242528,3.76204346,1196.1,1196.0,5.25244686]
[1672540243480,3.76204346,1196.1,1196.0,15.91212537]
[1672540243789,3.76204346,1196.1,1196.0,5.25244686]
[1672540244208,3.76204346,1196.1,1196.0,16.28454901]
[1672540244635,3.76204346,1196.1,1196.0,5.25244686]
[1672540245270,3.76204346,1196.1,1196.0,16.25117358]
[1672540245575,3.76204346,1196.1,1196.0,5.25244686]
[1672540246311,3.76204346,1196.1,1196.0,16.19525765]
[1672540246520,3.76204346,1196.1,1196.0,5.25244686]
[1672540247680,3.76204346,1196.1,1196.0,4.0]
[1672540250624,3.76204346,1196.1,1196.0,14.63345779]
[1672540250833,3.76204346,1196.1,1196.0,4.0]
[1672540252849,3.76204346,1196.1,1196.0,3.99215604]
[1672540254717,3.76204346,1196.1,1195.9,1.25244686]
[1672540254927,3.76204346,1196.1,1195.9,4.0]
[1672540254928,3.7610927,1196.0,1195.9,4.0]
[1672540255138,7.7610927,1196.0,1195.9,4.0]
[1672540256608,4.0,1196.0,1195.9,5.25244686]
[1672540257978,8.15316276,1196.1,1195.9,5.25244686]
[1672540258292,4.0,1196.0,1195.9,5.25244686]
[1672540258503,3.7610927,1196.1,1195.9,7.13111715]
[1672540258819,11.65316276,1196.2,1196.0,1.25244686]
[1672540259553,7.2610927,1196.2,1196.0,1.25244686]
[1672540261442,11.65316276,1196.2,1196.0,1.25244686]
[1672540262383,11.65316276,1196.2,1195.9,7.13111715]
[1672540262591,3.7610927,1196.1,1195.9,7.13111715]
[1672540262802,11.65316276,1196.2,1196.0,1.25244686]
[1672540263433,7.2610927,1196.2,1196.0,1.25244686]
[1672540264592,11.65316276,1196.2,1196.0,1.25244686]
[1672540264805,11.65316276,1196.2,1195.9,7.13111715]
[1672540265015,3.7610927,1196.1,1195.9,7.13111715]
[1672540265226,4.0,1196.0,1195.9,7.13111715]
[1672540266912,3.99217811,1196.0,1195.9,7.13111715]
[1672540270485,3.7610927,1196.1,1195.9,7.13111715]
[1672540270694,3.7610927,1196.1,1196.0,1.25244686]
[1672540271004,11.65316276,1196.2,1196.0,1.25244686]
[1672540271630,3.7610927,1196.1,1196.0,1.25244686]
[1672540273107,3.7610927,1196.1,1195.9,7.13111715]
[1672540273312,4.0,1196.0,1195.9,7.13111715]
[1672540277312,4.0,1196.0,1195.9,5.87867029]
[1672540277838,4.0,1196.0,1195.9,7.13021986]
[1672540278360,4.0,1196.0,1195.9,5.87867029]
[1672540279099,11.65316276,1196.2,1195.9,5.87867029]
[1672540279306,11.65316276,1196.2,1196.0,1.25150496]
[1672540279512,3.7610927,1196.1,1196.0,1.25150496]
[1672540282991,3.7610927,1196.1,1195.9,7.13017525]
[1672540283203,4.0,1196.0,1195.9,7.13017525]
[1672540283404,4.0,1196.0,1195.9,5.87867029]
[1672540284246,4.0,1196.0,1195.9,7.13027219]
[1672540287297,4.0,1196.0,1195.9,5.2516019]
[1672540287507,4.0,1196.0,1195.9,7.13027219]
[1672540288252,4.0,1196.0,1195.9,5.2516019]
[1672540291822,3.7610927,1196.1,1195.9,5.87867029]
[1672540292029,3.7610927,1196.1,1196.0,1.25137149]
[1672540294557,3.7610927,1196.1,1195.9,7.13004178]
[1672540294766,4.0,1196.0,1195.9,7.13004178]
[1672540295293,4.0,1196.0,1195.9,5.87867029]
[1672540295504,3.7610927,1196.1,1195.9,5.87867029]
[1672540295715,3.7610927,1196.1,1196.0,1.25171346]
[1672540296974,3.7610927,1196.1,1195.9,7.13038375]
[1672540297186,3.7610927,1196.1,1196.0,1.25171346]
[1672540302234,3.7610927,1196.2,1196.0,13.91971478]
[1672540302538,3.7610927,1196.2,1196.1,4.75171346]
[1672540302748,7.7610927,1196.2,1196.1,4.75171346]
[1672540302955,3.7610927,1196.2,1196.1,4.75171346]
[1672540303592,6.7610927,1196.2,1196.1,4.75171346]
[1672540303909,3.7610927,1196.2,1196.1,4.75171346]
[1672540304121,7.7610927,1196.2,1196.1,4.75171346]
[1672540304853,3.7610927,1196.2,1196.1,4.75171346]
[1672540305910,7.7610927,1196.2,1196.1,4.75171346]
[1672540306648,3.7610927,1196.2,1196.1,4.75171346]
[1672540306849,8.15316276,1196.3,1196.1,4.75171346]
[1672540307169,4.0,1196.2,1196.1,4.75171346]
[1672540309800,4.0,1196.2,1196.1,3.5]
[1672540310000,8.15316276,1196.3,1196.1,3.5]
[1672540310535,3.5,1196.2,1196.1,3.5]
[1672540310740,4.0,1196.2,1196.1,3.5]
[1672540311059,7.7610927,1196.2,1196.1,3.5]
[1672540311899,3.5,1196.2,1196.1,3.5]
[1672540312532,8.15316276,1196.3,1196.1,3.5]
[1672540313270,4.0,1196.2,1196.1,3.5]
[1672540316534,8.15316276,1196.3,1196.1,3.5]
[1672540317059,4.0,1196.2,1196.1,3.5]
[1672540318530,8.15316276,1196.3,1196.1,3.5]
[1672540319266,3.0,1196.2,1196.1,3.5]
[1672540319583,4.0,1196.2,1196.1,3.5]
[1672540320095,8.15316276,1196.3,1196.1,4.75171346]
[1672540320096,3.7610927,1196.3,1196.1,4.75171346]
[1672540320518,7.7610927,1196.3,1196.1,4.75171346]
[1672540320949,3.0,1196.2,1196.1,4.75171346]
[1672540322316,3.0,1196.2,1196.1,3.5]
[1672540322630,7.7610927,1196.3,1196.1,3.5]
[1672540323258,12.15316276,1196.3,1196.1,3.5]
[1672540323463,3.0,1196.2,1196.1,3.5]
[1672540325456,3.7610927,1196.3,1196.1,3.5]
[1672540325676,9.40227583,1196.4,1196.2,1.25171346]
[1672540325677,3.7610927,1196.4,1196.2,1.25171346]
[1672540325878,7.7610927,1196.4,1196.1,6.63038375]
[1672540326088,7.7610927,1196.4,1196.3,4.0]
[1672540327243,12.15316276,1196.4,1196.3,4.0]
[1672540327567,8.39207006,1196.4,1196.3,4.0]
[1672540331454,12.15068987,1196.4,1196.3,4.0]
[1672540334294,8.39207006,1196.4,1196.3,4.0]
[1672540334715,8.39207006,1196.4,1196.2,10.30304481]
[1672540334926,11.65060359,1196.3,1196.1,3.5]
[1672540335138,3.75853353,1196.2,1196.1,4.0]
[1672540336392,11.65060359,1196.3,1196.1,4.0]
[1672540337344,11.65060359,1196.3,1196.1,5.25171346]
[1672540337553,11.65060359,1196.3,1196.1,4.0]
[1672540338285,11.65060359,1196.3,1196.1,5.25171346]
[1672540340391,3.75853353,1196.2,1196.1,5.25171346]
[1672540341231,3.75853353,1196.2,1196.1,4.0]
[1672540342170,3.75853353,1196.2,1196.1,5.25171346]
[1672540342382,3.75853353,1196.2,1196.1,4.0]
[1672540342702,3.75853353,1196.2,1196.1,5.25171346]
[1672540344281,3.75853353,1196.3,1196.1,14.23681754]
[1672540344485,3.75853353,1196.3,1196.2,1.25091411]
[1672540345013,8.15060359,1196.4,1196.2,12.0005519]
[1672540345216,3.75853353,1196.4,1196.2,13.87922219]
[1672540345426,7.75853353,1196.4,1196.3,3.5]
[1672540345635,3.75853353,1196.4,1196.3,3.5]
[1672540347745,7.75853353,1196.4,1196.3,3.5]
[1672540349630,3.75853353,1196.4,1196.3,3.5]
[1672540349944,7.75853353,1196.4,1196.3,3.5]
[1672540352784,12.15060359,1196.4,1196.3,3.5]
[1672540353096,8.39207006,1196.4,1196.3,3.5]
[1672540353312,12.15014112,1196.4,1196.3,3.5]
[1672540353524,7.75807106,1196.4,1196.3,3.5]
[1672540353940,3.75807106,1196.4,1196.3,3.5]
[1672540354152,7.75807106,1196.4,1196.3,3.5]
[1672540376123,3.75807106,1196.4,1196.3,3.5]
[1672540376335,7.75807106,1196.4,1196.3,3.5]
[1672540377170,3.75807106,1196.4,1196.3,3.5]
[1672540377384,8.15014112,1196.5,1196.3,3.5]
[1672540377702,7.75807106,1196.5,1196.3,4.75091411]
[1672540379181,12.15014112,1196.5,1196.3,4.75091411]
[1672540379492,7.75807106,1196.5,1196.3,4.75091411]